Cogmind - Beta 13 @@@ ROGUE MODE // 2024.05.05 @ 16:30:15 Player: luckinvolved Result: Self-destructed Performance ------------- Evolutions (3) 1500 Regions Visited (6) 1200 Robots Destroyed (23) 115 Value Destroyed (424) 424 Prototype IDs (8) 160 Alien Tech Used (0) 0 Bonus (314) 314 TOTAL SCORE: 3713 Bonus ------- Follower Combat Kills 14 Aligned with FarCom 300 Cogmind --------- Core Integrity 161/700 Matter 11/300 Energy 150/150 System Corruption 0% Temperature Cool (0) Movement Flying (32) Location -7/Factory Parts ------- > --- POWER (1) -------- Micro Nuclear Core > --- PROPULSION (4) --- Flight Unit Improved VTOL Module Xenon Bombardment Thruster > --- UTILITY (6) ------ Modified TNC > --- WEAPON (2) ------- Missile Launcher Chainsword > --- INVENTORY (5) ---- Deuterium Engine Component Analysis Suite Ion Cannon EMP Blaster Heavy Missile Launcher Peak State ------------ > --- POWER ------------ Micro Nuclear Core > --- PROPULSION ------- Improved VTOL Module Xenon Bombardment Thruster Xenon Bombardment Thruster Improved Cesium-ion Thruster > --- UTILITY ---------- Lightpack 2.0 Experimental Sensor Array Modified TNC Improved Light Armor Plating > --- WEAPON ----------- Chainsword Spear > --- INVENTORY -------- Ion Engine Deuterium Engine Flight Unit Flight Unit Xenon Bombardment Thruster Xenon Bombardment Thruster Weight Redist. System Machine Analyzer Improved Salvage Targeting Computer Reflective Plating Component Analysis Suite Component Analysis Suite Corruption Screen Shock Rifle Arc Projector Beam Rifle Heavy Particle Gun Ion Cannon EMP Blaster Rocket Launcher Heavy Missile Launcher [Rating: 83] Favorites ----------- Power Ion Engine Engine Ion Engine Power Core Micro Nuclear Core Propulsion Wheel Treads Light Treads Wheel Wheel Flight Unit Flight Unit Utility Cargo Storage Unit Device Terrain Scanner Storage Cargo Storage Unit Processor Terrain Scan Processor Protection Improved Light Armor Plating Weapon Assault Rifle Energy Gun Medium Laser Energy Cannon Ion Cannon Ballistic Gun Assault Rifle Launcher Missile Launcher Special Weapon Field Lobotomy Kit Slashing Weapon Chainsword Piercing Weapon Spear Build | -11 -10 -10 -10 -9 -8 -7 ------- Run | Yrd Mat Min Exi Min Mat Fac Slots Evolved 6 | . . . . . 4 2 Power . | . . . . . . . Propulsion 2 | . . . . . . 2 Utility 4 | . . . . . 4 . Weapon . | . . . . . . . Parts Attached 60 | 6 3 . 3 . 17 31 Power 6 | 1 . . . . 2 3 Engine 5 | 1 . . . . 2 2 Core 1 | . . . . . . 1 Reactor . | . . . . . . . Propulsion 25 | 2 2 . . . 2 19 Treads 2 | 2 . . . . . . Leg . | . . . . . . . Wheel 3 | . 2 . . . 1 . Hover . | . . . . . . . Flight 20 | . . . . . 1 19 Utility 13 | 1 1 . . . 8 3 Device 3 | . . . . . 2 1 Storage 3 | 1 1 . . . . 1 Processor 3 | . . . . . 3 . Hackware . | . . . . . . . Protection 4 | . . . . . 3 1 Artifact . | . . . . . . . Weapon 16 | 2 . . 3 . 5 6 Energy Gun 5 | 1 . . . . 3 1 Energy Cannon 1 | . . . . . 1 . Ballistic Gun 4 | 1 . . 2 . 1 . Ballistic Cannon . | . . . . . . . Launcher 2 | . . . . . . 2 Special Weapon 1 | . . . 1 . . . Impact Weapon . | . . . . . . . Slashing Weapon 2 | . . . . . . 2 Piercing Weapon 1 | . . . . . . 1 Special Melee Weapon . | . . . . . . . Unidentified Prototypes 8 | . . . 1 . 4 3 Parts Lost 10 | . . . . . 3 7 Power 2 | . . . . . 2 . Propulsion 5 | . . . . . . 5 Utility 3 | . . . . . 1 2 Weapon . | . . . . . . . Highest Loss Streak 7 | . . . . . 2 7 To Critical Strikes . | . . . . . . . Average Slot Usage (%) 82 | . 85 85 77 85 81 78 Engine 11 | . 14 14 14 14 9 5 Treads 1 | . 8 . . . . . Wheel 20 | . 19 28 28 28 18 . Flight 3 | . . . . . . 29 Device 2 | . . . . . 6 5 Storage 11 | . 14 14 14 14 9 6 Processor 5 | . . . . . 15 13 Protection 1 | . . . . . 6 . Energy Gun 7 | . 14 14 6 . 6 8 Energy Cannon 1 | . . . . . 5 . Ballistic Gun 13 | . 14 14 14 28 6 . Naked Turns . | . . . . . . . Heaviest Build 166 | 14 149 149 149 148 166 22 Greatest Support 40 | 40 40 20 20 20 20 23 Greatest Overweight (x) 8 | . 7 7 7 7 8 1 Average Overweight (x) 4 | . 4 7 7 7 7 . Largest Inventory Capacity 40 | 8 30 30 30 30 30 40 Average Capacity 29 | 6 23 30 30 30 30 39 Most Carried 38 | 3 12 19 29 30 30 38 Average Carried 22 | 1 8 16 22 29 29 24 Final Capacity 30 | 8 30 30 30 30 30 5 Final Carried 30 | 3 12 19 28 30 28 5 Class Distribution -------------------- 68% | Hauler-Mutant 18% | Hauler-Skirmisher 7% | Mutant 6% | Hauler-Sprinter Dominant Class ---------------- Hauler-Mutant | -10/Materials Hauler-Mutant | -10/Mines Hauler-Mutant | -10/Exiles Hauler-Mutant | -9/Mines Hauler-Skirmisher | -8/Materials Hauler-Sprinter | -7/Factory Resources | -11 -10 -10 -10 -9 -8 -7 ----------- Run | Yrd Mat Min Exi Min Mat Fac Matter Collected 818 | 249 86 12 30 30 192 219 Remotely . | . . . . . . . Salvage Created 756 | . 130 102 . . 453 71 Parts 46 | . 16 . . . 26 4 Haulers Intercepted 5 | . 2 . . . 2 1 Recyclers Shooed . | . . . . . . . Parts Field Recycled . | . . . . . . . Retrieved Matter . | . . . . . . . Parts Self-Destructed . | . . . . . . . Prevented . | . . . . . . . Kills | -11 -10 -10 -10 -9 -8 -7 ------- Run | Yrd Mat Min Exi Min Mat Fac Combat Hostiles Destroyed 13 | . 2 1 . . 8 2 Melee 1 | . . . . . . 1 Guns 9 | . 2 1 . . 6 . Cannons 1 | . . . . . 1 . AOE 1 | . . . . . . 1 Classes Destroyed 8 | . 3 1 . . 2 2 Builder 1 | . . . . . 1 . Hauler 5 | . 2 . . . 2 1 Recycler 2 | . . 1 . . 1 . Watcher 2 | . 1 . . . 1 . Swarmer 8 | . 2 1 . . 5 . Sentry 3 | . . . . . 3 . Programmer 1 | . . . . . . 1 Heavy 1 | . . . . . . 1 Best Kill Streak 4 | . 3 1 . . 4 2 Combat Bots Only 3 | . 2 1 . . 3 2 Max Kills in Single Turn 2 | . 1 1 . . 2 1 Gunslinging . | . . . . . . . Exploded 1 | . . . . . . 1 Melee 1 | . . . . . . 1 Uniques/NPCs Destroyed . | . . . . . . . Combat | -11 -10 -10 -10 -9 -8 -7 -------- Run | Yrd Mat Min Exi Min Mat Fac Hostile Shots Fired 211 | . 26 1 . . 55 129 Missed 98 | . 10 . . . 14 74 Damage Taken 1805 | . 140 7 . . 485 1173 Core 585 | . 6 . . . 40 539 Absorbed by Shields . | . . . . . . . Core Remaining (%) 96 | 100 . . . 97 92 . Volleys Fired 60 | . 16 3 . . 29 12 Largest 2 | . 2 2 . . 2 2 Hottest 115 | . 70 70 . . 115 111 Shots Fired 109 | . 32 6 . . 57 14 Gun 85 | . 32 6 . . 45 2 Cannon 12 | . . . . . 12 . Launcher 12 | . . . . . . 12 Special . | . . . . . . . Kinetic 39 | . 16 3 . . 20 . Thermal 57 | . 16 3 . . 36 2 Explosive 12 | . . . . . . 12 Electromagnetic 1 | . . . . . 1 . Robot Hit Streak 12 | . 11 3 . . 11 12 Robot Miss Streak 3 | . 2 2 . . 3 1 Penetration Max . | . . . . . . . Secondary Targets . | . . . . . . . Shots Hit Robots 78 | . 23 4 . . 39 12 Core Hits 32 | . 6 3 . . 14 9 Critical Kills . | . . . . . . . Critical Parts Destroyed . | . . . . . . . Critical Strikes 2 | . . . . . 1 1 Burn 2 | . . . . . 1 1 Melee Attacks 4 | . . . . . . 4 Impact . | . . . . . . . Slashing 1 | . . . . . . 1 Piercing 3 | . . . . . . 3 Sneak Attacks . | . . . . . . . Combat Hostiles . | . . . . . . . Follow-up Attacks . | . . . . . . . Damage Inflicted 1498 | . 290 53 . . 761 394 Guns 917 | . 290 53 . . 555 19 Cannons 206 | . . . . . 206 . Explosions 336 | . . . . . . 336 Melee 39 | . . . . . . 39 Ramming . | . . . . . . . Kinetic 354 | . 140 40 . . 174 . Thermal 741 | . 150 13 . . 559 19 Explosive 336 | . . . . . . 336 Electromagnetic 28 | . . . . . 28 . Impact . | . . . . . . . Slashing 24 | . . . . . . 24 Piercing 15 | . . . . . . 15 Highest Corruption . | . . . . . . . Average Corruption . | . . . . . . . Corruption Purged . | . . . . . . . Corruption Blocked . | . . . . . . . Overload Shots . | . . . . . . . Overflow Damage . | . . . . . . . Projectiles . | . . . . . . . Explosions . | . . . . . . . Melee . | . . . . . . . Knockbacks . | . . . . . . . Impact . | . . . . . . . Kinetic . | . . . . . . . Secondary . | . . . . . . . Self-Inflicted Damage . | . . . . . . . Shots . | . . . . . . . Rammed . | . . . . . . . Targets Rammed . | . . . . . . . Kicked . | . . . . . . . Crushed . | . . . . . . . Highest Temperature 274 | . 36 9 . . 274 39 Average Temperature 57 | . 11 6 . . 95 12 Received Heat Transfer 198 | . . . . . 126 72 Effects 2 | . . . . . 2 . Interference 2 | . . . . . 2 . Siege Activations . | . . . . . . . Robots Corrupted . | . . . . . . . Combat Hostiles . | . . . . . . . Parts Fried . | . . . . . . . Impact Corruptions . | . . . . . . . Robots Melted 1 | . . . . . 1 . Combat Hostiles 1 | . . . . . 1 . Parts Melted 5 | . . . . . 5 . Heat Transferred 1665 | . 444 37 . . 1073 111 Parts Sabotaged . | . . . . . . . Parts Stolen . | . . . . . . . Parts Stripped . | . . . . . . . Power Chain Reactions . | . . . . . . . Alert | -11 -10 -10 -10 -9 -8 -7 ------- Run | Yrd Mat Min Exi Min Mat Fac Peak Influence 189 | . 90 82 . . 189 151 Initial 3 | . . 3 . . . . Average 33 | . 47 61 . . 37 36 Maximum Alert Level . | . . . . . . . Low Security (%) 100 | 100 100 100 . 100 100 100 Level 1 . | . . . . . . . Level 2 . | . . . . . . . Level 3 . | . . . . . . . Level 4 . | . . . . . . . Level 5 . | . . . . . . . High Security . | . . . . . . . Max Security . | . . . . . . . Squads Dispatched 5 | . 2 . . . 1 2 Investigation 1 | . 1 . . . . . Extermination 1 | . . . . . . 1 Reinforcement 3 | . 1 . . . 1 1 Assault . | . . . . . . . Garrison . | . . . . . . . Intercept . | . . . . . . . Searches Triggered . | . . . . . . . Construction Impeded . | . . . . . . . Haulers Reinforced . | . . . . . . . Active Scanning Responses . | . . . . . . . Cargo Convoy Interrupts . | . . . . . . . Stealth | -11 -10 -10 -10 -9 -8 -7 --------- Run | Yrd Mat Min Exi Min Mat Fac Distress Signals 2 | . 1 . . . 1 . Communications Jammed . | . . . . . . . Distress Signals . | . . . . . . . Times Spotted 31 | . 10 3 . . 12 6 Peak Tracking Total 4 | . 4 3 . . 3 3 Tactical Retreats 4 | . . . . . 1 3 Traps | -11 -10 -10 -10 -9 -8 -7 ------- Run | Yrd Mat Min Exi Min Mat Fac Traps Triggered . | . . . . . . . Indirectly . | . . . . . . . Trap Hack Attempts . | . . . . . . . Triggered . | . . . . . . . Disarmed . | . . . . . . . Reprogrammed . | . . . . . . . Reused . | . . . . . . . Traps Extracted . | . . . . . . . Installed 1 | . . . . . 1 . Triggered . | . . . . . . . Most Traps Carried 1 | . . . . 1 1 . Machines | -11 -10 -10 -10 -9 -8 -7 ---------- Run | Yrd Mat Min Exi Min Mat Fac Machines Disabled 2 | . . . . . . 2 Max in Single Turn 1 | . . . . . . 1 Machines Repaired . | . . . . . . . Machines Dismantled . | . . . . . . . Machines Sabotaged . | . . . . . . . Overloaded Fab Kills . | . . . . . . . Hacking | -11 -10 -10 -10 -9 -8 -7 --------- Run | Yrd Mat Min Exi Min Mat Fac Machines Accessed 11 | . 6 . 1 . 3 1 Terminals 10 | . 6 . . . 3 1 Fabricators . | . . . . . . . Repair Stations . | . . . . . . . Recycling Units . | . . . . . . . Scanalyzers . | . . . . . . . Garrison Access . | . . . . . . . Total Hacks 21 | . 14 . 1 . 5 1 Successful 14 | . 11 . 1 . 2 . Failed 7 | . 3 . . . 3 1 Catastrophic 1 | . . . . . . 1 Database Lockouts . | . . . . . . . Manual 21 | . 14 . 1 . 5 1 Terminals 20 | . 14 . . . 5 1 Fabricators . | . . . . . . . Repair Stations . | . . . . . . . Recycling Units . | . . . . . . . Scanalyzers . | . . . . . . . Garrison Access . | . . . . . . . Terminal Hacks 5 | . 4 . 1 . . . Record 1 | . . . 1 . . . Robot Analysis 4 | . 4 . . . . . Fabricator Hacks . | . . . . . . . Repair Station Hacks . | . . . . . . . Recycling Unit Hacks . | . . . . . . . Scanalyzer . | . . . . . . . Garrison Access Hacks . | . . . . . . . Unauthorized Hacks 9 | . 7 . . . 2 . Terminals 9 | . 7 . . . 2 . Assimilate 1 | . 1 . . . . . Botnet 8 | . 6 . . . 2 . Fabricators . | . . . . . . . Repair Stations . | . . . . . . . Recycling Units . | . . . . . . . Scanalyzers . | . . . . . . . Garrison Access . | . . . . . . . Data Cores Recovered . | . . . . . . . Used . | . . . . . . . Hacking Detections 8 | . 4 . . . 3 1 Full Trace Events 1 | . 1 . . . . . Feedback Events . | . . . . . . . Feedback Blocked . | . . . . . . . Robot Schematics Acquired . | . . . . . . . Robots Built . | . . . . . . . Authchips . | . . . . . . . Time . | . . . . . . . Total Robot Build Rating . | . . . . . . . Part Schematics Acquired . | . . . . . . . Parts Built . | . . . . . . . Authchips . | . . . . . . . Time . | . . . . . . . Total Part Build Rating . | . . . . . . . Parts Repaired . | . . . . . . . Time . | . . . . . . . Parts Recycled . | . . . . . . . Recycled Matter . | . . . . . . . Retrieved Matter . | . . . . . . . Retrieved Components . | . . . . . . . Parts Scanalyzed . | . . . . . . . Part Schematics Acquired . | . . . . . . . Parts Damaged . | . . . . . . . Bothacking | -11 -10 -10 -10 -9 -8 -7 ------------ Run | Yrd Mat Min Exi Min Mat Fac Used RIF Installer . | . . . . . . . Robots Hacked . | . . . . . . . Non-combat . | . . . . . . . Combat . | . . . . . . . Robot Hacks Applied . | . . . . . . . Relay Couplers Released . | . . . . . . . Fabnet Peak Effective % . | . . . . . . . Robots Rewired . | . . . . . . . Allies Hacked . | . . . . . . . Hacks Repelled . | . . . . . . . Allies | -11 -10 -10 -10 -9 -8 -7 -------- Run | Yrd Mat Min Exi Min Mat Fac Total Allies 1 | . . 1 . . . . Largest Group 1 | . . 1 . . . . Highest-Rated Group 31 | . . 31 . . . . Highest-Rated Ally 31 | . . 31 . . . . Total Orders . | . . . . . . . Ally Attacks 9 | . . 9 . . . . Total Damage 104 | . . 104 . . . . Kills 2 | . . 2 . . . . Allies Corrupted . | . . . . . . . Allies Melted . | . . . . . . . Intel | -11 -10 -10 -10 -9 -8 -7 ------- Run | Yrd Mat Min Exi Min Mat Fac Robot Analysis Total 4 | . 4 . . . . . Derelict Logs Recovered 2 | . . 1 . 1 . . Drone Launches . | . . . . . . . Drone Recoveries . | . . . . . . . Exploration | -11 -10 -10 -10 -9 -8 -7 ------------- Run | Yrd Mat Min Exi Min Mat Fac Turns Passed 3400 | 85 495 412 464 662 924 358 Spaces Moved 1976 | 47 241 205 245 285 394 559 Core 1 | 1 . . . . . . Treads 132 | 46 86 . . . . . Legs . | . . . . . . . Wheels 1284 | . 155 205 245 285 394 . Hover . | . . . . . . . Flight 559 | . . . . . . 559 Fastest Speed 28 | 50 160 185 185 185 185 28 Average Speed 139 | 157 176 185 185 185 189 29 Slowest Speed 200 | 160 185 185 185 185 200 108 Overloaded Moves . | . . . . . . . Propulsion Burnouts . | . . . . . . . Robots Hopped . | . . . . . . . Cave-ins Triggered . | . . . . . . . Exploration Rate (%) 39 | 5 45 72 60 53 28 13 Regions Visited 6 Branch Regions 3 Pre-discovered Areas 1 | . . . . 1 . . Known Exits Taken . | . . . . . . . Unknown Exits Taken 6 | 1 1 1 1 1 1 . Scrap Searched 4 | . . 3 . 1 . . Spaces Dug . | . . . . . . . Terrain Destroyed 56 | . . . . . . 56 Melee . | . . . . . . . Projectile . | . . . . . . . AOE 56 | . . . . . . 56 Terrain Rammed . | . . . . . . . Walls Destroyed . | . . . . . . . Machines Disabled . | . . . . . . . Actions | -11 -10 -10 -10 -9 -8 -7 --------- Run | Yrd Mat Min Exi Min Mat Fac Total 2502 | 55 279 232 256 420 521 739 Wait 262 | . 10 18 . 134 51 49 Move 1970 | 46 240 204 244 284 393 559 Hop . | . . . . . . . Pick Up 93 | 3 9 7 7 2 14 51 Fast Attach 20 | 6 1 . 1 . 6 6 Attach 22 | . . . 1 . 8 13 Detach 5 | . . . 1 . 1 3 Swap 18 | . 2 . 1 . 3 12 Drop 47 | . 1 . 1 . 15 30 Fire 60 | . 16 3 . . 29 12 Melee 4 | . . . . . . 4 Ram . | . . . . . . . Kick . | . . . . . . . Crush . | . . . . . . . Escape Stasis . | . . . . . . . Rewire . | . . . . . . . Trap 1 | . . . . . 1 . Miscellaneous . | . . . . . . . Route ------- -11/Scrapyard -10/Materials (discovered 2 exits: [*Mat] / [*Min]) -10/Mines (discovered 2 exits: [*Mat] / *Exi) -10/Exiles -9/Mines -8/Materials -7/Factory History --------- Turn | Location | Event 7 | -11/Scrapyard | Discovered new exit (range 15) 86 | -11/Scrapyard | Entered Materials 301 | -10/Materials | Discovered new exit (range 3) 552 | -10/Materials | Build established: Hauler-Mutant 568 | -10/Materials | Discovered new exit (range 8) 581 | -10/Materials | Entered Mines 584 | -10/Mines | Received a Mining Laser from a helpful Derelict 606 | -10/Mines | Found a damaged Exp. Sensor Array with a note attached 609 | -10/Mines | Found Prototype Device 834 | -10/Mines | Discovered new exit (range 15) 984 | -10/Mines | Deemed a non-threat by the Exiles lab entrance 984 | -10/Mines | Discovered new exit (range 5) 993 | -10/Mines | Entered Exiles 1038 | -10/Exiles | Met 8R-AWN 1071 | -10/Exiles | Met EX-HEX 1123 | -10/Exiles | Met EX-BIN 1143 | -10/Exiles | Aligned with FarCom system 1145 | -10/Exiles | Given EX-Vault access code 1188 | -10/Exiles | Opened EX-Vault 1195 | -10/Exiles | Found Prototype Processor 1200 | -10/Exiles | Found Prototype Storage 1203 | -10/Exiles | Found Prototype Special Weapon 1203 | -10/Exiles | Identified Field Lobotomy Kit 1278 | -10/Exiles | Warned to stay clear of 0b10 Research branches 1332 | -10/Exiles | Met EX-DEC 1434 | -10/Exiles | Discovered new exit (range 14) 1457 | -10/Exiles | Stole three prototypes: Field Lobotomy Kit, Modified TNC, Lightpack 2.0 1457 | -10/Exiles | Entered Mines 1716 | -9/Mines | Learned location of Zion (-7) 1754 | -9/Mines | Found a hidden stash of uninstalled traps 2070 | -9/Mines | Discovered new exit (range 15) 2119 | -9/Mines | Entered Materials 2119 | -8/Materials | Evolved 4 slots: Utility x4 2301 | -8/Materials | Identified Exp. Sensor Array 2484 | -8/Materials | Build established: Hauler-Skirmisher 2964 | -8/Materials | Identified Modified TNC 3035 | -8/Materials | Discovered new exit (range 5) 3043 | -8/Materials | Entered Factory 3043 | -7/Factory | Evolved 2 slots: Propulsion x2 3045 | -7/Factory | FarCom data flow suspended 3050 | -7/Factory | Identified Lightpack 2.0 3358 | -7/Factory | Core integrity fell below 50% 3401 | -7/Factory | Self-destructed Last Messages --------------- 03354_ Terminal disabled. 03355_ Rocket Launcher blasted off. 03355_ Knocked back. 03357_ Imp. Cesium-ion Thruster destroyed. 03357_ Critical hit (Blast). 03362_ Penetrated by Slug. 03367_ Flight Unit destroyed. 03371_ Acquired Flight Unit. 03372_ Exp. Sensor Array destroyed. 03374_ Manufacturing Mainframe disabled. 03378_ Door malfunctions. 03380_ P-60 Hacker destroyed. 03387_ Penetrated by Slug. 03387_ Xenon Bombardment Thruster destroyed. 03391_ The unstable cave ceiling collapses. 03392_ Knocked back. 03393_ Acquired 10 matter. 03394_ Dropped Lightpack 2.0. 03397_ The unstable cave ceiling collapses. 03397_ H-61 Shepherd destroyed. Map ----- +----------------------------------------------------+ | | | | | | | | | | | | | | | | | | | | | | | | | | | ?????????????????????????##?#???????########?????? | | ???????????????????????## ? ########| #?????? | | ???????????????????????# # *# / #?????? | | ??????????????????????? # ####### | | ??????????????????????## + ## # | | ??????????????????????# # ## # | | ??????????????????????# #/ ## # | | ??????????????????????# +########### # | | ############???######## #???# # | | #???# # | | #???#;# ! #???# # | | #?#### / !#???# # | | #?#;; @ ;;;####### # | | ^ ### ; # | | ######### ##; ;;######### # | | #???????# ##;] ## # # | | #??##???# ##; ## + + | | #### #### ##; Y ## # # | | # # T#; ! ##! = *# # | | #" !# ## !*[! ### # # | | #" ||| # #?# !!!![ ;#?# # # | | #" || # #####;; ;;##[#[ # # ###?######## # | | #T || # # !! #####% ########### # | | #" # # ! # ## # # | | #" """ # # !==[ #""" # # # | | #" """ # # !![ #""" ## """ """ # + | | # """ + + #"""" ### """ """ # # | | #= # # #"""" #?# """ """ # # | | # ! # # # #?# # # | | ######### # # #?# # # | | #######+### #?# # # | | #?????# #?# #?###+####### # | | #?????# ######/####### #???# # | | #?????# ##### # | | ! [+ | | ############+########## ####### | | #?? ???????################ #?????# | +----------------------------------------------------+ Best States ------------- Heat Dissipation 34 Energy Generation 15 Energy Capacity 250 Matter Stores 300 Matter Capacity 300 Sight Range 18 Robot Scan Range 20 Terrain Scan Range 14 Terrain Scan Density 85 Armor Coverage 375 Resistance: TH 10 Evasion (%) 64 Recoil Reduction 2 Item Schematics ----------------- None Robot Schematics ------------------ None Fabricated ------------ Nothing Alien Tech Used ----------------- None Achievements -------------- None Challenges ------------ None Game ------ Seed WeaponsNodeClaymores Manual? 0 Play Time 00:33:16 Cumulative 79.3 hours Start 2024.05.05 @ 15:55:48 End 2024.05.05 @ 16:30:15 Sessions 1 Manual Loads 0 Difficulty Rogue Special Mode None Game No. 116 Rogue 111 Adventurer 5 Explorer 0 Win Type - Total 2 Types 1/0/0/1/0/0/0/0/0 Lore% 40 Gallery% 61 Achievement% 48 Wizard Run 0 Options --------- Layout 0 ASCII 0 Keyboard 0 Movement Mouse Keybinds 0 Fullscreen 1 Font 24/Smallcaps Map View 76x50 Zoom Use 36% Tactical HUD 1 Map Filters NONE Filters NONE Steam 1 RUN: 9923c727-74ea-44d5-a9fd-fbe618fcda8d